[Event "January 9 Early 2024"]
[Site "https://www.chess.com"]
[Date "2024.01.11"]
[Round "6"]
[White "Bazilius, Augustinas"]
[Black "Rajdeep Sarkar"]
[Result "0-1"]
[Board "226"]
[TimeControl "180+1"]
[WhiteFideId "12832251"]
[BlackFideId "25007963"]
[WhiteElo "2517"]
[BlackElo "2445"]
[WhiteTeam "LTU"]
[BlackTeam "IND"]
[WhiteClock "0:00:01"]
[BlackClock "0:00:06"]

1. e4 {[%clk 0:03:00]}  e5 {[%clk 0:02:59]} 2. d4 {[%clk 0:03:00]}  exd4 {[%clk 0:02:58]} 3. c3 {[%clk 0:02:57]}  d3 {[%clk 0:02:58]} 4. Bxd3 {[%clk 0:02:53]}  Nc6 {[%clk 0:02:57]} 5. Ne2 {[%clk 0:02:52]}  g6 {[%clk 0:02:57]} 6. O-O {[%clk 0:02:51]}  Bg7 {[%clk 0:02:57]} 7. f4 {[%clk 0:02:49]}  d6 {[%clk 0:02:57]} 8. f5 {[%clk 0:02:46]}  Ne5 {[%clk 0:02:56]} 9. Bc2 {[%clk 0:02:46]}  Nf6 {[%clk 0:02:49]} 10. fxg6 {[%clk 0:02:34]}  fxg6 {[%clk 0:02:43]} 11. Bb3 {[%clk 0:02:29]}  Qe7 {[%clk 0:02:30]} 12. Nf4 {[%clk 0:02:14]}  Bg4 {[%clk 0:02:14]} 13. Qd4 {[%clk 0:02:03]}  Nc6 {[%clk 0:02:08]} 14. Qa4 {[%clk 0:01:29]}  Bd7 {[%clk 0:01:43]} 15. Nd5 {[%clk 0:00:40]}  Nxd5 {[%clk 0:01:42]} 16. Bxd5 {[%clk 0:00:37]}  O-O-O {[%clk 0:01:24]} 17. Nd2 {[%clk 0:00:20]}  Rhf8 {[%clk 0:01:19]} 18. Rxf8 {[%clk 0:00:18]}  Rxf8 {[%clk 0:01:17]} 19. Bxc6 {[%clk 0:00:09]}  Bxc6 {[%clk 0:01:17]} 20. Qxa7 {[%clk 0:00:09]}  Bxe4 {[%clk 0:00:59]} 21. Nxe4 {[%clk 0:00:06]}  Qxe4 {[%clk 0:00:58]} 22. Bg5 {[%clk 0:00:04]}  h6 {[%clk 0:00:41]} 23. Bd2 {[%clk 0:00:02]}  Qd5 {[%clk 0:00:28]} 24. Qa8+ {[%clk 0:00:02]}  Kd7 {[%clk 0:00:27]} 25. Qa4+ {[%clk 0:00:03]}  b5 {[%clk 0:00:25]} 26. Qc2 {[%clk 0:00:03]}  Qc5+ {[%clk 0:00:18]} 27. Kh1 {[%clk 0:00:03]}  Rf2 {[%clk 0:00:18]} 28. Qd3 {[%clk 0:00:02]}  Qc6 {[%clk 0:00:15]} 29. Qh3+ {[%clk 0:00:02]}  Kd8 {[%clk 0:00:13]} 30. Be3 {[%clk 0:00:03]}  Rxb2 {[%clk 0:00:11]} 31. Rf1 {[%clk 0:00:03]}  Qxc3 {[%clk 0:00:10]} 32. Qh4+ {[%clk 0:00:02]}  g5 {[%clk 0:00:10]} 33. Bxg5+ {[%clk 0:00:02]}  hxg5 {[%clk 0:00:10]} 34. Qxg5+ {[%clk 0:00:03]}  Kc8 {[%clk 0:00:10]} 35. Qf5+ {[%clk 0:00:02]}  Kb7 {[%clk 0:00:10]} 36. Qd5+ {[%clk 0:00:02]}  Kb6 {[%clk 0:00:09]} 37. Qf7 {[%clk 0:00:02]}  Be5 {[%clk 0:00:08]} 38. h3 {[%clk 0:00:01]}  Qc2 {[%clk 0:00:08]} 39. Qd5 {[%clk 0:00:02]}  Qc6 {[%clk 0:00:07]} 40. Qf3 {[%clk 0:00:01]}  Qxf3 {[%clk 0:00:07]} 41. Rxf3 {[%clk 0:00:02]}  Rxa2 {[%clk 0:00:08]} 42. g4 {[%clk 0:00:02]}  c5 {[%clk 0:00:07]} 43. g5 {[%clk 0:00:02]}  c4 {[%clk 0:00:07]} 44. g6 {[%clk 0:00:03]}  c3 {[%clk 0:00:07]} 45. Rf1 {[%clk 0:00:02]}  c2 {[%clk 0:00:07]} 46. Rc1 {[%clk 0:00:02]}  b4 {[%clk 0:00:06]} 47. h4 {[%clk 0:00:02]}  b3 {[%clk 0:00:06]} 48. h5 {[%clk 0:00:01]}  b2 {[%clk 0:00:06]} 0-1

[Event "January 9 Early 2024"]
[Site "https://www.chess.com"]
[Date "2024.01.11"]
[Round "6"]
[White "Gutkin, Ilya"]
[Black "Kruckenhauser, Arthur"]
[Result "0-1"]
[Board "227"]
[TimeControl "180+1"]
[WhiteFideId "16203470"]
[BlackFideId "1642812"]
[WhiteElo "2345"]
[BlackElo "2561"]
[WhiteTeam "GER"]
[BlackTeam "AUT"]
[WhiteClock "0:00:01"]
[BlackClock "0:00:07"]

1. Nf3 {[%clk 0:03:00]}  d5 {[%clk 0:02:58]} 2. g3 {[%clk 0:03:01]}  e6 {[%clk 0:02:58]} 3. Bg2 {[%clk 0:03:01]}  Nf6 {[%clk 0:02:59]} 4. d4 {[%clk 0:03:02]}  Be7 {[%clk 0:02:56]} 5. c4 {[%clk 0:03:02]}  O-O {[%clk 0:02:55]} 6. Qc2 {[%clk 0:03:03]}  c6 {[%clk 0:02:49]} 7. O-O {[%clk 0:03:02]}  b6 {[%clk 0:02:49]} 8. Nc3 {[%clk 0:02:54]}  a5 {[%clk 0:02:49]} 9. Rd1 {[%clk 0:02:48]}  Ba6 {[%clk 0:02:48]} 10. b3 {[%clk 0:02:47]}  b5 {[%clk 0:02:48]} 11. Ne5 {[%clk 0:02:39]}  Nfd7 {[%clk 0:02:38]} 12. cxb5 {[%clk 0:02:36]}  cxb5 {[%clk 0:02:33]} 13. e4 {[%clk 0:02:37]}  Nxe5 {[%clk 0:02:21]} 14. dxe5 {[%clk 0:02:37]}  d4 {[%clk 0:02:22]} 15. Ne2 {[%clk 0:02:24]}  Qc8 {[%clk 0:02:03]} 16. Qxc8 {[%clk 0:02:11]}  Rxc8 {[%clk 0:02:04]} 17. Nxd4 {[%clk 0:02:11]}  Nc6 {[%clk 0:02:04]} 18. Be3 {[%clk 0:02:06]}  Nxd4 {[%clk 0:01:53]} 19. Bxd4 {[%clk 0:02:03]}  Ba3 {[%clk 0:01:53]} 20. Bf1 {[%clk 0:01:54]}  g5 {[%clk 0:01:27]} 21. Be3 {[%clk 0:01:48]}  h6 {[%clk 0:01:19]} 22. h4 {[%clk 0:01:43]}  gxh4 {[%clk 0:01:10]} 23. gxh4 {[%clk 0:01:41]}  Bb7 {[%clk 0:01:10]} 24. Bxb5 {[%clk 0:01:32]}  Bxe4 {[%clk 0:01:10]} 25. Bxh6 {[%clk 0:01:17]}  Bb2 {[%clk 0:01:06]} 26. Bc4 {[%clk 0:00:49]}  Bxa1 {[%clk 0:00:57]} 27. Rxa1 {[%clk 0:00:49]}  Kh7 {[%clk 0:00:55]} 28. Bg5 {[%clk 0:00:48]}  a4 {[%clk 0:00:31]} 29. Re1 {[%clk 0:00:46]}  Bf5 {[%clk 0:00:28]} 30. Kh2 {[%clk 0:00:34]}  a3 {[%clk 0:00:28]} 31. Kg3 {[%clk 0:00:29]}  Ra7 {[%clk 0:00:26]} 32. Rd1 {[%clk 0:00:26]}  Rac7 {[%clk 0:00:13]} 33. Rd4 {[%clk 0:00:18]}  Rb8 {[%clk 0:00:14]} 34. Kf4 {[%clk 0:00:16]}  Bb1 {[%clk 0:00:13]} 35. Rd2 {[%clk 0:00:16]}  Rbb7 {[%clk 0:00:12]} 36. Ke3 {[%clk 0:00:14]}  Rd7 {[%clk 0:00:12]} 37. Rd6 {[%clk 0:00:12]}  Rxd6 {[%clk 0:00:12]} 38. exd6 {[%clk 0:00:13]}  Bxa2 {[%clk 0:00:12]} 39. Bd8 {[%clk 0:00:12]}  Bxb3 {[%clk 0:00:12]} 40. Bc7 {[%clk 0:00:07]}  Ba4 {[%clk 0:00:07]} 41. Bd3+ {[%clk 0:00:04]}  Kg8 {[%clk 0:00:07]} 42. Bc2 {[%clk 0:00:05]}  Bd7 {[%clk 0:00:05]} 43. h5 {[%clk 0:00:05]}  a2 {[%clk 0:00:05]} 44. h6 {[%clk 0:00:05]}  a1=Q {[%clk 0:00:04]} 45. h7+ {[%clk 0:00:06]}  Kh8 {[%clk 0:00:05]} 46. Bd8 {[%clk 0:00:05]}  Qe5+ {[%clk 0:00:04]} 47. Kf3 {[%clk 0:00:05]}  f5 {[%clk 0:00:05]} 48. Kg2 {[%clk 0:00:04]}  Kxh7 {[%clk 0:00:05]} 49. Be7 {[%clk 0:00:02]}  Bc6+ {[%clk 0:00:05]} 50. Kf1 {[%clk 0:00:01]}  Bb5+ {[%clk 0:00:05]} 51. Kg2 {[%clk 0:00:01]}  Bc6+ {[%clk 0:00:05]} 52. Kf1 {[%clk 0:00:01]}  Rxe7 {[%clk 0:00:06]} 53. dxe7 {[%clk 0:00:01]}  Qc7 {[%clk 0:00:07]} 0-1

[Event "January 9 Early 2024"]
[Site "https://www.chess.com"]
[Date "2024.01.11"]
[Round "6"]
[White "Przybylski, Wojciech"]
[Black "Bonin, Jay"]
[Result "1-0"]
[Board "228"]
[TimeControl "180+1"]
[WhiteFideId "1117599"]
[BlackFideId "2000644"]
[WhiteElo "2553"]
[BlackElo "2329"]
[WhiteTeam "POL"]
[BlackTeam "USA"]
[WhiteClock "0:00:14"]
[BlackClock "0:00:04"]

1. e4 {[%clk 0:02:59]}  c5 {[%clk 0:02:58]} 2. Nf3 {[%clk 0:02:58]}  Nc6 {[%clk 0:02:58]} 3. d4 {[%clk 0:02:51]}  cxd4 {[%clk 0:02:57]} 4. Nxd4 {[%clk 0:02:52]}  e5 {[%clk 0:02:57]} 5. Nb5 {[%clk 0:02:51]}  d6 {[%clk 0:02:57]} 6. N1c3 {[%clk 0:02:51]}  a6 {[%clk 0:02:56]} 7. Na3 {[%clk 0:02:51]}  Be6 {[%clk 0:02:56]} 8. Nd5 {[%clk 0:02:49]}  Nf6 {[%clk 0:02:54]} 9. Bg5 {[%clk 0:02:47]}  Bxd5 {[%clk 0:02:53]} 10. Qxd5 {[%clk 0:02:32]}  Nxd5 {[%clk 0:02:49]} 11. Bxd8 {[%clk 0:02:31]}  Rxd8 {[%clk 0:02:46]} 12. exd5 {[%clk 0:02:30]}  Ne7 {[%clk 0:02:43]} 13. O-O-O {[%clk 0:02:30]}  g6 {[%clk 0:02:37]} 14. h4 {[%clk 0:02:29]}  h5 {[%clk 0:02:33]} 15. Nc4 {[%clk 0:02:29]}  f5 {[%clk 0:02:28]} 16. Nb6 {[%clk 0:02:23]}  Bh6+ {[%clk 0:02:19]} 17. Kb1 {[%clk 0:02:23]}  Nc8 {[%clk 0:02:17]} 18. Nc4 {[%clk 0:02:19]}  Rd7 {[%clk 0:02:10]} 19. g3 {[%clk 0:02:15]}  Rc7 {[%clk 0:02:09]} 20. a4 {[%clk 0:02:09]}  b5 {[%clk 0:02:03]} 21. axb5 {[%clk 0:02:05]}  axb5 {[%clk 0:02:02]} 22. Na5 {[%clk 0:02:05]}  Na7 {[%clk 0:01:51]} 23. Nc6 {[%clk 0:02:01]}  Kf7 {[%clk 0:01:41]} 24. Nxa7 {[%clk 0:01:59]}  Rxa7 {[%clk 0:01:39]} 25. Bxb5 {[%clk 0:01:59]}  Rha8 {[%clk 0:01:35]} 26. c4 {[%clk 0:01:58]}  e4 {[%clk 0:01:29]} 27. Kc2 {[%clk 0:01:57]}  Bg7 {[%clk 0:01:24]} 28. Kb3 {[%clk 0:01:46]}  Ra2 {[%clk 0:01:20]} 29. Rd2 {[%clk 0:01:42]}  R8a3+ {[%clk 0:01:12]} 30. bxa3 {[%clk 0:01:38]}  Rxd2 {[%clk 0:01:10]} 31. c5 {[%clk 0:01:26]}  dxc5 {[%clk 0:01:07]} 32. a4 {[%clk 0:01:20]}  c4+ {[%clk 0:00:59]} 33. Kxc4 {[%clk 0:01:13]}  Ke7 {[%clk 0:00:54]} 34. Bc6 {[%clk 0:00:51]}  Bd4 {[%clk 0:00:45]} 35. a5 {[%clk 0:00:45]}  Bxf2 {[%clk 0:00:40]} 36. a6 {[%clk 0:00:45]}  Ba7 {[%clk 0:00:37]} 37. Rb1 {[%clk 0:00:43]}  Kd6 {[%clk 0:00:29]} 38. Rb7 {[%clk 0:00:41]}  Bf2 {[%clk 0:00:18]} 39. a7 {[%clk 0:00:36]}  Ra2 {[%clk 0:00:17]} 40. Rd7+ {[%clk 0:00:30]}  Ke5 {[%clk 0:00:15]} 41. a8=Q {[%clk 0:00:30]}  Rxa8 {[%clk 0:00:14]} 42. Bxa8 {[%clk 0:00:30]}  Bxg3 {[%clk 0:00:12]} 43. Re7+ {[%clk 0:00:27]}  Kd6 {[%clk 0:00:11]} 44. Re6+ {[%clk 0:00:26]}  Kd7 {[%clk 0:00:11]} 45. Bc6+ {[%clk 0:00:26]}  Kc7 {[%clk 0:00:10]} 46. Rxg6 {[%clk 0:00:25]}  Bxh4 {[%clk 0:00:08]} 47. Rh6 {[%clk 0:00:16]}  Bf2 {[%clk 0:00:07]} 48. Rxh5 {[%clk 0:00:15]}  f4 {[%clk 0:00:07]} 49. Rh7+ {[%clk 0:00:15]}  Kd6 {[%clk 0:00:06]} 50. Rh6+ {[%clk 0:00:15]}  Ke5 {[%clk 0:00:05]} 51. Re6+ {[%clk 0:00:14]}  Kf5 {[%clk 0:00:05]} 52. Bd7 {[%clk 0:00:15]}  e3 {[%clk 0:00:04]} 53. Rxe3+ {[%clk 0:00:14]} 1-0

[Event "January 9 Early 2024"]
[Site "https://www.chess.com"]
[Date "2024.01.11"]
[Round "6"]
[White "Rees, Ioan"]
[Black "Derjabin, Ilja"]
[Result "1-0"]
[Board "229"]
[TimeControl "180+1"]
[WhiteFideId "1801236"]
[BlackFideId "14104768"]
[WhiteElo "2406"]
[BlackElo "2519"]
[WhiteTeam "WLS"]
[BlackTeam "UKR"]
[WhiteClock "0:00:25"]
[BlackClock "0:00:02"]

1. e4 {[%clk 0:03:00]}  e6 {[%clk 0:02:58]} 2. b3 {[%clk 0:02:58]}  d5 {[%clk 0:02:59]} 3. Bb2 {[%clk 0:02:57]}  dxe4 {[%clk 0:02:58]} 4. Nc3 {[%clk 0:02:57]}  Nf6 {[%clk 0:02:58]} 5. Qe2 {[%clk 0:02:57]}  Be7 {[%clk 0:02:57]} 6. Nxe4 {[%clk 0:02:56]}  Nc6 {[%clk 0:02:56]} 7. O-O-O {[%clk 0:02:54]}  O-O {[%clk 0:02:55]} 8. Nf3 {[%clk 0:02:51]}  a5 {[%clk 0:02:54]} 9. a4 {[%clk 0:02:50]}  Nb4 {[%clk 0:02:52]} 10. Kb1 {[%clk 0:02:47]}  b6 {[%clk 0:02:49]} 11. h4 {[%clk 0:02:41]}  Bb7 {[%clk 0:02:47]} 12. d3 {[%clk 0:02:41]}  Qd5 {[%clk 0:02:30]} 13. Nfd2 {[%clk 0:02:28]}  b5 {[%clk 0:02:08]} 14. axb5 {[%clk 0:02:13]}  a4 {[%clk 0:02:02]} 15. Nxf6+ {[%clk 0:02:13]}  Bxf6 {[%clk 0:02:01]} 16. Bxf6 {[%clk 0:02:13]}  gxf6 {[%clk 0:02:02]} 17. Qg4+ {[%clk 0:02:12]}  Kh8 {[%clk 0:02:02]} 18. Qxb4 {[%clk 0:02:13]}  axb3 {[%clk 0:01:59]} 19. Qxb3 {[%clk 0:02:12]}  Qc5 {[%clk 0:01:56]} 20. Qb2 {[%clk 0:02:06]}  e5 {[%clk 0:01:44]} 21. Ne4 {[%clk 0:02:03]}  Bxe4 {[%clk 0:01:39]} 22. dxe4 {[%clk 0:02:03]}  Ra4 {[%clk 0:01:37]} 23. Rh3 {[%clk 0:01:54]}  Rfa8 {[%clk 0:01:34]} 24. Rb3 {[%clk 0:01:48]}  Qxf2 {[%clk 0:01:24]} 25. Bd3 {[%clk 0:01:39]}  Qxh4 {[%clk 0:01:02]} 26. b6 {[%clk 0:01:33]}  cxb6 {[%clk 0:01:01]} 27. Rxb6 {[%clk 0:01:34]}  Kg7 {[%clk 0:01:00]} 28. Rf1 {[%clk 0:01:32]}  Qg3 {[%clk 0:00:51]} 29. Rbxf6 {[%clk 0:01:26]}  R8a7 {[%clk 0:00:51]} 30. R6f5 {[%clk 0:01:17]}  Ra1+ {[%clk 0:00:43]} 31. Qxa1 {[%clk 0:01:17]}  Rxa1+ {[%clk 0:00:44]} 32. Kxa1 {[%clk 0:01:18]}  Qe3 {[%clk 0:00:42]} 33. Rxf7+ {[%clk 0:01:17]}  Kg6 {[%clk 0:00:41]} 34. R1f6+ {[%clk 0:01:14]}  Kg5 {[%clk 0:00:38]} 35. Rf5+ {[%clk 0:01:13]}  Kg6 {[%clk 0:00:33]} 36. R7f6+ {[%clk 0:00:58]}  Kg7 {[%clk 0:00:32]} 37. Ra6 {[%clk 0:00:58]}  h5 {[%clk 0:00:17]} 38. Kb2 {[%clk 0:00:54]}  h4 {[%clk 0:00:15]} 39. Kc3 {[%clk 0:00:42]}  Qe1+ {[%clk 0:00:14]} 40. Kc4 {[%clk 0:00:42]}  Qe3 {[%clk 0:00:15]} 41. Kd5 {[%clk 0:00:40]}  Qd4+ {[%clk 0:00:14]} 42. Ke6 {[%clk 0:00:41]}  h3 {[%clk 0:00:13]} 43. Rd6 {[%clk 0:00:36]}  Qc5 {[%clk 0:00:03]} 44. gxh3 {[%clk 0:00:35]}  Qc8+ {[%clk 0:00:02]} 45. Kxe5 {[%clk 0:00:35]}  Qc5+ {[%clk 0:00:01]} 46. Rd5 {[%clk 0:00:35]}  Qc7+ {[%clk 0:00:01]} 47. Kd4 {[%clk 0:00:34]}  Kh6 {[%clk 0:00:01]} 48. Rf6+ {[%clk 0:00:33]}  Kg7 {[%clk 0:00:01]} 49. Rfd6 {[%clk 0:00:34]}  Qa7+ {[%clk 0:00:01]} 50. Ke5 {[%clk 0:00:32]}  Qa1+ {[%clk 0:00:02]} 51. Ke6 {[%clk 0:00:32]}  Qf6+ {[%clk 0:00:02]} 52. Kd7 {[%clk 0:00:32]}  Qf7+ {[%clk 0:00:03]} 53. Kc8 {[%clk 0:00:32]}  Qf2 {[%clk 0:00:02]} 54. Rc6 {[%clk 0:00:30]}  Kh8 {[%clk 0:00:02]} 55. Rd7 {[%clk 0:00:29]}  Qc5 {[%clk 0:00:01]} 56. Rxc5 {[%clk 0:00:28]}  Kg8 {[%clk 0:00:01]} 57. Rg5+ {[%clk 0:00:27]}  Kf8 {[%clk 0:00:01]} 58. Rh5 {[%clk 0:00:26]}  Ke8 {[%clk 0:00:02]} 59. Rh8# {[%clk 0:00:25]} 1-0

[Event "January 9 Early 2024"]
[Site "https://www.chess.com"]
[Date "2024.01.11"]
[Round "6"]
[White "Kjartansson, David"]
[Black "Cori T., Deysi"]
[Result "1-0"]
[Board "232"]
[TimeControl "180+1"]
[WhiteFideId "2301130"]
[BlackFideId "3801934"]
[WhiteElo "2433"]
[BlackElo "2564"]
[WhiteTeam "ISL"]
[BlackTeam "PER"]
[WhiteClock "0:00:07"]
[BlackClock "0:00:05"]

1. e4 {[%clk 0:02:49]}  d6 {[%clk 0:02:59]} 2. d4 {[%clk 0:02:45]}  a6 {[%clk 0:02:58]} 3. Nf3 {[%clk 0:02:25]}  Nf6 {[%clk 0:02:55]} 4. Bd3 {[%clk 0:02:25]}  g6 {[%clk 0:02:53]} 5. O-O {[%clk 0:02:22]}  Bg7 {[%clk 0:02:53]} 6. c3 {[%clk 0:02:20]}  O-O {[%clk 0:02:53]} 7. Qe2 {[%clk 0:02:19]}  Bg4 {[%clk 0:02:51]} 8. Nbd2 {[%clk 0:02:18]}  Nbd7 {[%clk 0:02:49]} 9. h3 {[%clk 0:02:15]}  Bxf3 {[%clk 0:02:49]} 10. Nxf3 {[%clk 0:02:16]}  e5 {[%clk 0:02:47]} 11. dxe5 {[%clk 0:02:11]}  Nxe5 {[%clk 0:02:47]} 12. Nxe5 {[%clk 0:02:10]}  dxe5 {[%clk 0:02:48]} 13. Bc4 {[%clk 0:02:03]}  Qe7 {[%clk 0:02:43]} 14. a4 {[%clk 0:01:58]}  Rfd8 {[%clk 0:02:40]} 15. b3 {[%clk 0:01:57]}  Qd7 {[%clk 0:02:31]} 16. Bg5 {[%clk 0:01:49]}  Qc6 {[%clk 0:02:25]} 17. Bxf6 {[%clk 0:01:34]}  Bxf6 {[%clk 0:02:22]} 18. Rad1 {[%clk 0:01:32]}  Kg7 {[%clk 0:02:15]} 19. g3 {[%clk 0:01:20]}  h5 {[%clk 0:02:14]} 20. h4 {[%clk 0:01:20]}  Rab8 {[%clk 0:02:09]} 21. Qe3 {[%clk 0:01:10]}  Be7 {[%clk 0:01:56]} 22. Rd5 {[%clk 0:01:06]}  Rxd5 {[%clk 0:01:30]} 23. Bxd5 {[%clk 0:01:06]}  Qc5 {[%clk 0:01:31]} 24. Qf3 {[%clk 0:01:02]}  Bf6 {[%clk 0:01:30]} 25. b4 {[%clk 0:01:00]}  Qe7 {[%clk 0:01:24]} 26. Rd1 {[%clk 0:00:57]}  c6 {[%clk 0:01:21]} 27. Bb3 {[%clk 0:00:56]}  Rd8 {[%clk 0:01:21]} 28. Rd3 {[%clk 0:00:55]}  Qc7 {[%clk 0:01:18]} 29. Qd1 {[%clk 0:00:54]}  a5 {[%clk 0:01:17]} 30. bxa5 {[%clk 0:00:44]}  Qxa5 {[%clk 0:01:15]} 31. Rd7 {[%clk 0:00:44]}  Be7 {[%clk 0:00:45]} 32. Qd3 {[%clk 0:00:29]}  Qc5 {[%clk 0:00:21]} 33. Rxd8 {[%clk 0:00:26]}  Bxd8 {[%clk 0:00:21]} 34. Qxd8 {[%clk 0:00:26]}  Qxc3 {[%clk 0:00:21]} 35. Qd1 {[%clk 0:00:26]}  Qb4 {[%clk 0:00:16]} 36. Qf3 {[%clk 0:00:23]}  Qe7 {[%clk 0:00:16]} 37. a5 {[%clk 0:00:22]}  Qc7 {[%clk 0:00:15]} 38. Qc3 {[%clk 0:00:21]}  Qd6 {[%clk 0:00:13]} 39. Qc4 {[%clk 0:00:20]}  Qd7 {[%clk 0:00:13]} 40. Kg2 {[%clk 0:00:20]}  Kf6 {[%clk 0:00:12]} 41. Qc5 {[%clk 0:00:18]}  Qd8 {[%clk 0:00:13]} 42. Bc4 {[%clk 0:00:17]}  Qd7 {[%clk 0:00:12]} 43. Qe3 {[%clk 0:00:16]}  Kg7 {[%clk 0:00:12]} 44. Qc5 {[%clk 0:00:15]}  Kf6 {[%clk 0:00:12]} 45. Be2 {[%clk 0:00:12]}  Kg7 {[%clk 0:00:12]} 46. Qxe5+ {[%clk 0:00:11]}  Kh7 {[%clk 0:00:12]} 47. Qc5 {[%clk 0:00:09]}  Qe6 {[%clk 0:00:11]} 48. e5 {[%clk 0:00:09]}  Qa2 {[%clk 0:00:11]} 49. Bc4 {[%clk 0:00:09]}  Qc2 {[%clk 0:00:09]} 50. Qd4 {[%clk 0:00:07]}  Qa4 {[%clk 0:00:07]} 51. Qf4 {[%clk 0:00:07]}  f5 {[%clk 0:00:05]} 52. exf6 {[%clk 0:00:06]}  Qxa5 {[%clk 0:00:05]} 53. f7 {[%clk 0:00:07]} 1-0

[Event "January 9 Early 2024"]
[Site "https://www.chess.com"]
[Date "2024.01.11"]
[Round "6"]
[White "Volkov, Maksim"]
[Black "Cruz, William Ferreira Da"]
[Result "1-0"]
[Board "233"]
[TimeControl "180+1"]
[WhiteFideId "54123070"]
[BlackFideId "2118050"]
[WhiteElo "2663"]
[BlackElo "2334"]
[WhiteTeam "RUS"]
[BlackTeam "BRA"]
[WhiteClock "0:00:18"]
[BlackClock "0:00:04"]

1. e4 {[%clk 0:03:00]}  e6 {[%clk 0:02:59]} 2. d4 {[%clk 0:03:00]}  d5 {[%clk 0:02:58]} 3. Nc3 {[%clk 0:03:01]}  Nf6 {[%clk 0:02:56]} 4. Bg5 {[%clk 0:02:59]}  dxe4 {[%clk 0:02:55]} 5. Nxe4 {[%clk 0:02:58]}  Be7 {[%clk 0:02:55]} 6. Bxf6 {[%clk 0:02:58]}  gxf6 {[%clk 0:02:54]} 7. g4 {[%clk 0:02:50]}  Bd7 {[%clk 0:02:29]} 8. Bg2 {[%clk 0:02:45]}  Bc6 {[%clk 0:02:28]} 9. f3 {[%clk 0:02:05]}  f5 {[%clk 0:02:09]} 10. gxf5 {[%clk 0:01:57]}  exf5 {[%clk 0:02:09]} 11. Ng3 {[%clk 0:01:56]}  f4 {[%clk 0:02:06]} 12. Ne4 {[%clk 0:01:52]}  Bh4+ {[%clk 0:01:53]} 13. Kf1 {[%clk 0:01:47]}  f5 {[%clk 0:01:36]} 14. Nc3 {[%clk 0:01:43]}  O-O {[%clk 0:01:29]} 15. Nge2 {[%clk 0:01:38]}  Qe7 {[%clk 0:01:09]} 16. d5 {[%clk 0:01:30]}  Qe3 {[%clk 0:00:55]} 17. Qd4 {[%clk 0:01:26]}  Bd7 {[%clk 0:00:55]} 18. Rd1 {[%clk 0:01:18]}  Bf6 {[%clk 0:00:48]} 19. Qxf4 {[%clk 0:01:11]}  Qxf4 {[%clk 0:00:45]} 20. Nxf4 {[%clk 0:01:12]}  Na6 {[%clk 0:00:45]} 21. Kf2 {[%clk 0:01:05]}  Nb4 {[%clk 0:00:43]} 22. Rd2 {[%clk 0:00:58]}  Bxc3 {[%clk 0:00:40]} 23. bxc3 {[%clk 0:00:58]}  Nxa2 {[%clk 0:00:40]} 24. Rd3 {[%clk 0:00:35]}  Bb5 {[%clk 0:00:40]} 25. Re3 {[%clk 0:00:36]}  Rae8 {[%clk 0:00:40]} 26. Ne6 {[%clk 0:00:36]}  Rf7 {[%clk 0:00:36]} 27. f4 {[%clk 0:00:36]}  Bc4 {[%clk 0:00:34]} 28. Bf3 {[%clk 0:00:36]}  Ree7 {[%clk 0:00:27]} 29. Rg1+ {[%clk 0:00:35]}  Kh8 {[%clk 0:00:27]} 30. Bh5 {[%clk 0:00:32]}  Rf6 {[%clk 0:00:23]} 31. Nxc7 {[%clk 0:00:28]}  Rxe3 {[%clk 0:00:22]} 32. Kxe3 {[%clk 0:00:29]}  Nxc3 {[%clk 0:00:17]} 33. Kd4 {[%clk 0:00:29]}  Nb5+ {[%clk 0:00:16]} 34. Ke5 {[%clk 0:00:20]}  Rf8 {[%clk 0:00:14]} 35. Ne6 {[%clk 0:00:20]}  Ra8 {[%clk 0:00:13]} 36. Bf7 {[%clk 0:00:20]}  Nc3 {[%clk 0:00:10]} 37. d6 {[%clk 0:00:18]}  Bxe6 {[%clk 0:00:10]} 38. Bxe6 {[%clk 0:00:18]}  Ne4 {[%clk 0:00:11]} 39. d7 {[%clk 0:00:18]}  Nc5 {[%clk 0:00:10]} 40. Kd6 {[%clk 0:00:17]}  b6 {[%clk 0:00:10]} 41. Ke7 {[%clk 0:00:14]}  Nxd7 {[%clk 0:00:09]} 42. Kxd7 {[%clk 0:00:14]}  a5 {[%clk 0:00:10]} 43. Bxf5 {[%clk 0:00:14]}  a4 {[%clk 0:00:10]} 44. Be6 {[%clk 0:00:14]}  a3 {[%clk 0:00:10]} 45. f5 {[%clk 0:00:14]}  a2 {[%clk 0:00:09]} 46. Ra1 {[%clk 0:00:14]}  Ra7+ {[%clk 0:00:08]} 47. Kd6 {[%clk 0:00:14]}  Kg7 {[%clk 0:00:06]} 48. Ke5 {[%clk 0:00:15]}  Rc7 {[%clk 0:00:05]} 49. Rxa2 {[%clk 0:00:14]}  Rc5+ {[%clk 0:00:05]} 50. Bd5 {[%clk 0:00:14]}  b5 {[%clk 0:00:04]} 51. f6+ {[%clk 0:00:14]}  Kg6 {[%clk 0:00:04]} 52. Ra7 {[%clk 0:00:14]}  Rxc2 {[%clk 0:00:02]} 53. Rg7+ {[%clk 0:00:14]}  Kh6 {[%clk 0:00:02]} 54. Rxh7+ {[%clk 0:00:14]}  Kxh7 {[%clk 0:00:01]} 55. Be4+ {[%clk 0:00:14]}  Kg8 {[%clk 0:00:02]} 56. Bxc2 {[%clk 0:00:14]}  b4 {[%clk 0:00:02]} 57. h4 {[%clk 0:00:14]}  Kf7 {[%clk 0:00:02]} 58. Kf5 {[%clk 0:00:15]}  Kf8 {[%clk 0:00:02]} 59. Bb3 {[%clk 0:00:15]}  Ke8 {[%clk 0:00:02]} 60. Kg6 {[%clk 0:00:15]}  Kf8 {[%clk 0:00:03]} 61. h5 {[%clk 0:00:15]}  Ke8 {[%clk 0:00:03]} 62. Kg7 {[%clk 0:00:16]}  Kd7 {[%clk 0:00:03]} 63. f7 {[%clk 0:00:17]}  Kd6 {[%clk 0:00:04]} 64. f8=Q+ {[%clk 0:00:18]} 1-0